bitfinex/quotes_SOLUSD_20240816
["timestamp","ask_amount","ask_price","bid_price","bid_amount"]
[1723793405668,6.9205,144.5,144.47,20.0]
[1723793406171,6.9205,144.5,144.49,20.0]
[1723793406380,17.2981,144.53,144.49,20.0]
[1723793406381,6.92,144.51,144.49,20.0]
[1723793409086,17.2195,144.52,144.49,20.0]
[1723793409854,6.9195,144.52,144.49,20.0]
[1723793410059,17.2191,144.53,144.51,20.0]
[1723793410369,6.9194,144.52,144.49,20.0]
[1723793410553,6.9194,144.52,144.5,20.0]
[1723793410767,6.9194,144.52,144.48,6.9213]
[1723793410982,6.9194,144.52,144.47,26.9216]
[1723793411279,6.9194,144.52,144.48,45.0]
[1723793412560,17.2199,144.51,144.47,20.0]
[1723793414088,17.2199,144.51,144.5,20.0]
[1723793414792,17.2199,144.51,144.47,26.9217]
[1723793415507,17.2199,144.51,144.48,6.47230472]
[1723793415670,17.2199,144.51,144.47,26.9217]
[1723793415870,17.2199,144.51,144.5,20.0]
[1723793416498,6.9199,144.51,144.5,20.0]
[1723793417793,6.9196,144.52,144.5,20.0]
[1723793419889,6.9196,144.52,144.51,20.0]
[1723793421107,34.5821,144.59,144.51,20.0]
[1723793421108,8.43921616,144.57,144.56,20.0]
[1723793421282,1.52211616,144.57,144.56,20.0]
[1723793421488,8.43921616,144.57,144.54,20.0]
[1723793422706,8.43921616,144.57,144.53,6.9188]
[1723793422707,8.43921616,144.57,144.56,20.0]
[1723793423217,8.43921616,144.57,144.54,20.0]
[1723793424112,1.52211616,144.57,144.56,20.0]
[1723793426796,1.52211616,144.57,144.56,65.0]
[1723793428020,1.52211616,144.57,144.56,61.0]
[1723793428390,1.52211616,144.57,144.56,68.16848]
[1723793428581,1.52211616,144.57,144.56,68.29397]
[1723793429329,1.52211616,144.57,144.56,90.08457]
[1723793429530,1.52211616,144.57,144.56,110.21006]
[1723793430303,0.8463325,144.61,144.6,26.9156]
[1723793430559,0.8463325,144.61,144.6,72.16658]
[1723793430714,0.8463325,144.61,144.6,65.0]
[1723793431130,0.8463325,144.61,144.6,71.9156]
[1723793431431,0.8463325,144.61,144.6,65.0]
[1723793431639,0.8463325,144.61,144.56,42.29256]
[1723793431640,11.1463325,144.61,144.56,26.4603]
[1723793431848,17.2162,144.59,144.54,26.9183]
[1723793432137,6.9162,144.59,144.55,6.9179]
[1723793432509,6.9157,144.6,144.55,6.9179]
[1723793432712,6.9157,144.6,144.56,20.0]
[1723793432944,18.0614325,144.61,144.58,20.0]
[1723793433235,18.0614325,144.61,144.59,45.0]
[1723793433446,0.8463325,144.61,144.58,20.0]
[1723793433604,0.8463325,144.61,144.58,26.9164]
[1723793433934,0.8463325,144.61,144.58,20.0]
[1723793434242,0.8463325,144.61,144.59,45.0]
[1723793436319,0.8463325,144.61,144.58,20.0]
[1723793436730,7.7614325,144.61,144.58,20.0]
[1723793436945,18.0615325,144.61,144.58,20.0]
[1723793437155,18.0615325,144.61,144.57,6.917]
[1723793437333,11.1463325,144.61,144.56,20.0]
[1723793437644,11.1463325,144.61,144.57,45.0]
[1723793437850,18.0618325,144.61,144.57,45.0]
[1723793438029,11.1463325,144.61,144.57,45.0]
[1723793438230,6.9157,144.6,144.57,45.0]
[1723793441241,6.9176,144.56,144.51,26.9195]
[1723793441433,6.9176,144.56,144.51,20.0]
[1723793441663,17.2171,144.57,144.53,20.0]
[1723793441886,10.3,144.57,144.53,26.9189]
[1723793442178,6.9166,144.58,144.53,26.9189]
[1723793442179,6.9166,144.58,144.55,20.0]
[1723793443854,6.9162,144.59,144.55,20.0]
[1723793444172,6.9162,144.59,144.56,45.0]
[1723793446061,6.9162,144.59,144.55,20.0]
[1723793446383,6.9167,144.58,144.55,20.0]
[1723793446588,6.9167,144.58,144.54,6.9183]
[1723793446787,6.9167,144.58,144.55,45.0]
[1723793446948,6.9167,144.58,144.55,65.0]
[1723793447457,17.2167,144.58,144.55,45.0]
[1723793447777,17.2167,144.58,144.54,45.0]
[1723793448147,17.2167,144.58,144.55,2.07773673]
[1723793448354,17.2167,144.58,144.54,45.0]
[1723793448678,17.2167,144.58,144.55,2.07773789]
[1723793448862,17.2167,144.58,144.54,45.0]
[1723793449061,17.2167,144.58,144.55,2.07773851]
[1723793449254,17.2167,144.58,144.54,45.0]
[1723793449586,17.2167,144.58,144.55,2.07773789]
[1723793449744,17.2167,144.58,144.54,45.0]
[1723793449948,17.2167,144.58,144.55,2.07773789]
[1723793450156,17.2167,144.58,144.54,45.0]
[1723793450460,17.2167,144.58,144.55,22.07773789]
[1723793450784,17.2167,144.58,144.54,45.0]
[1723793451086,17.2167,144.58,144.55,2.07773788]
[1723793451376,17.2167,144.58,144.55,20.0]
[1723793452163,17.2167,144.58,144.54,45.0]
[1723793452365,17.2167,144.58,144.55,2.0777385]
[1723793452570,17.2167,144.58,144.54,45.0]
[1723793453126,17.2167,144.58,144.55,2.07772897]
[1723793453285,17.2167,144.58,144.54,45.0]
[1723793453581,17.2167,144.58,144.55,2.07772718]
[1723793453778,17.2167,144.58,144.54,45.0]
[1723793453984,17.2167,144.58,144.55,22.0777385]
[1723793454152,17.2167,144.58,144.55,20.0]
[1723793455461,17.2167,144.58,144.56,45.0]
[1723793455690,17.2167,144.58,144.55,20.0]
[1723793457878,17.2167,144.58,144.56,6.46683993]
[1723793458064,17.2167,144.58,144.55,20.0]
[1723793458267,17.2167,144.58,144.56,6.46683993]
[1723793458484,17.2167,144.58,144.55,20.0]
[1723793459581,16.3921325,144.61,144.57,20.0]
[1723793459902,6.9156,144.6,144.57,20.0]
[1723793460069,6.9156,144.6,144.58,8.54339838]
[1723793460260,6.9156,144.6,144.59,20.0]
[1723793460461,7.7616325,144.61,144.59,20.0]
[1723793464098,7.7617325,144.61,144.56,26.9174]
[1723793464309,7.7617325,144.61,144.57,64.07204406]
[1723793464525,7.7617325,144.61,144.58,8.54321415]
[1723793464749,7.7617325,144.61,144.57,45.0]
[1723793464901,7.7617325,144.61,144.58,8.54320569]
[1723793465101,7.7617325,144.61,144.57,45.0]
[1723793465300,7.7617325,144.61,144.58,8.54320381]
[1723793465508,7.7617325,144.61,144.57,45.0]
[1723793465812,7.7617325,144.61,144.58,8.54320569]
[1723793466122,7.7617325,144.61,144.57,45.0]
[1723793466293,7.7617325,144.61,144.58,28.54320381]
[1723793466494,7.7617325,144.61,144.59,45.0]
[1723793467407,7.7617325,144.61,144.58,45.0]
[1723793468523,7.7617325,144.61,144.57,45.0]
[1723793468822,0.8463325,144.61,144.6,20.0]
[1723793469020,0.8463325,144.61,144.6,26.46578043]
[1723793469330,0.8463325,144.61,144.6,28.54294195]
[1723793469901,0.8463325,144.61,144.6,26.46578043]
[1723793471111,0.8463325,144.61,144.6,71.46578043]
[1723793471734,0.8463325,144.61,144.6,26.46578043]
[1723793471923,0.8463325,144.61,144.6,6.46578043]
[1723793472125,0.8463325,144.61,144.6,26.46578043]
[1723793472630,0.8463325,144.61,144.6,26.46526128]
[1723793472939,0.8463325,144.61,144.6,80.45805236]
[1723793473349,0.8463325,144.61,144.6,73.54245236]
[1723793473631,0.8463325,144.61,144.6,73.66794236]
[1723793474038,0.8463325,144.61,144.6,126.9696573]
[1723793474218,0.8463325,144.61,144.6,113.67290525]
[1723793475457,0.8463325,144.61,144.6,129.61140525]
[1723793475679,0.8463325,144.61,144.6,177.57518492]
[1723793476377,0.8463325,144.61,144.6,171.09761175]
[1723793476565,0.8463325,144.61,144.6,165.1073331]
[1723793476744,0.8463325,144.61,144.6,134.82516256]
[1723793476930,0.8463325,144.61,144.6,177.56578656]
[1723793477564,0.8463325,144.61,144.6,180.36330009]
[1723793478239,0.8463325,144.61,144.6,124.72956581]
[1723793478447,0.8463325,144.61,144.6,124.47858581]
[1723793478670,0.8463325,144.61,144.6,121.68107228]
[1723793479346,0.8463325,144.61,144.6,108.38768023]
[1723793479886,0.8463325,144.61,144.6,118.77043451]
[1723793480190,0.8463325,144.61,144.6,153.88964023]
[1723793480568,0.8463325,144.61,144.6,153.88962659]
[1723793481282,0.8463325,144.61,144.6,149.73177008]
[1723793482097,0.8463325,144.61,144.6,55.45541597]
[1723793482394,0.8463325,144.61,144.6,35.45541597]
[1723793483307,0.8463325,144.61,144.59,20.0]
[1723793484164,0.8463325,144.61,144.59,26.916]
[1723793484769,0.8463325,144.61,144.59,20.0]
[1723793486868,18.0614325,144.61,144.57,26.9169]
[1723793487101,10.3,144.59,144.56,6.46569864]
[1723793487274,6.9162,144.59,144.55,20.0]
[1723793487469,39.8286,144.6,144.55,26.918]
[1723793487668,33.717,144.6,144.55,26.918]
[1723793488294,26.8013,144.6,144.58,20.0]
[1723793488597,0.8463325,144.61,144.58,20.0]
[1723793488803,7.7614325,144.61,144.57,6.9169]
[1723793489005,0.8463325,144.61,144.59,20.0]
[1723793491303,7.7615325,144.61,144.59,20.0]
[1723793492776,7.7615325,144.61,144.56,26.9174]
[1723793493108,7.7615325,144.61,144.57,45.0]
[1723793493282,10.3,144.58,144.55,6.465652]
[1723793493620,17.2176,144.56,144.51,15.70078678]
[1723793493785,10.3,144.56,144.52,26.9193]
[1723793495008,17.217,144.57,144.52,26.9193]
[1723793495306,17.217,144.57,144.54,20.0]
[1723793496805,6.9175,144.56,144.52,26.9193]
[1723793497491,17.2171,144.57,144.52,26.9193]
[1723793498992,17.2171,144.57,144.54,20.0]
[1723793501883,15.8778,144.58,144.56,20.0]
[1723793502092,10.3,144.6,144.56,20.0]
[1723793502515,17.2157,144.6,144.56,20.0]
[1723793503230,6.9161,144.59,144.56,20.0]
[1723793503522,17.2158,144.6,144.56,26.9175]
[1723793503719,6.9158,144.6,144.58,20.0]
[1723793504026,0.8463325,144.61,144.58,20.0]
[1723793504027,7.7616325,144.61,144.58,20.0]
[1723793504638,0.8463325,144.61,144.58,26.9165]
[1723793504868,0.8463325,144.61,144.6,20.0]
[1723793505352,0.8463325,144.61,144.58,6.9164]
[1723793507445,0.8463325,144.61,144.59,20.0]
[1723793509335,0.8463325,144.61,144.6,6.9156]
[1723793510153,0.8463325,144.61,144.6,52.04109]
[1723793510328,0.8463325,144.61,144.6,72.16658]
[1723793510520,0.8463325,144.61,144.6,52.16658]
[1723793510758,0.8463325,144.61,144.6,98.88186162]
[1723793514291,0.8463325,144.61,144.6,100.95854984]
[1723793514431,0.8463325,144.61,144.6,100.95769373]
[1723793515064,0.8463325,144.61,144.6,98.88100551]
[1723793516261,0.8463325,144.61,144.6,13.37904551]
[1723793516434,0.8463325,144.61,144.6,26.9156]
[1723793517762,0.8463325,144.61,144.6,72.16658]
[1723793517964,0.8463325,144.61,144.6,92.29207]
[1723793518432,0.8463325,144.61,144.6,98.75584306]
[1723793519056,0.8463325,144.61,144.6,78.75581102]
[1723793519252,0.8463325,144.61,144.6,72.29207]
[1723793519458,0.8463325,144.61,144.6,78.75581102]
[1723793519667,0.8463325,144.61,144.6,92.29207]
[1723793519845,0.8463325,144.61,144.6,98.75581102]
[1723793520045,0.8463325,144.61,144.6,92.29207]
[1723793520247,0.8463325,144.61,144.6,98.88130102]
[1723793520541,0.8463325,144.61,144.6,112.41756]
[1723793520744,0.8463325,144.61,144.6,98.75581102]
[1723793520948,0.8463325,144.61,144.6,98.63032102]
[1723793521146,0.8463325,144.61,144.6,92.16658]
[1723793521671,0.8463325,144.61,144.6,92.04109]
[1723793524377,0.8463325,144.61,144.6,98.50483764]
[1723793524581,0.8463325,144.61,144.6,92.04109]
[1723793525690,0.8463325,144.61,144.6,98.50487197]
[1723793525977,0.8463325,144.61,144.6,98.50483764]
[1723793530785,0.8463325,144.61,144.6,118.75581764]
[1723793532585,0.8463325,144.61,144.6,92.16658]
[1723793532760,0.8463325,144.61,144.6,92.04109]
[1723793533468,0.8463325,144.61,144.6,71.9156]
[1723793535289,0.8463325,144.61,144.6,72.04109]
[1723793540701,0.8463325,144.61,144.6,71.9156]
[1723793542428,0.8463325,144.61,144.6,72.04109]
[1723793544383,0.8463325,144.61,144.6,78.50546497]
[1723793546110,0.8463325,144.61,144.6,80.58209569]
[1723793546300,0.8463325,144.61,144.6,80.58212963]
[1723793546509,0.8463325,144.61,144.6,91.10841801]
[1723793546921,0.8463325,144.61,144.6,80.45663963]
[1723793547610,0.8463325,144.61,144.6,90.98303882]
[1723793548103,0.8463325,144.61,144.58,11.38702882]
[1723793548104,6.9161,144.59,144.58,7.22823658]
[1723793548326,17.2161,144.59,144.58,6.46566857]
[1723793548621,17.2161,144.59,144.54,26.9184]
[1723793548796,10.3,144.57,144.55,21.38568463]
[1723793548997,10.3,144.57,144.53,6.9188]
[1723793549194,10.3,144.57,144.54,8.54505032]
[1723793549396,10.3,144.57,144.53,6.9188]
[1723793550670,17.217,144.57,144.52,26.9193]
[1723793550790,17.217,144.57,144.53,45.0]
[1723793551494,10.3,144.55,144.53,45.0]
[1723793552799,16.4856,144.59,144.54,20.0]
[1723793553000,16.4856,144.59,144.57,6.9169]
[1723793553240,16.4856,144.59,144.56,20.0]
[1723793553241,16.4856,144.59,144.56,26.9174]
[1723793554107,6.9156,144.6,144.56,26.9174]
[1723793554337,11.1463325,144.61,144.58,20.0]
[1723793554642,0.8463325,144.61,144.58,20.0]
[1723793554846,11.1463325,144.61,144.58,20.0]
[1723793555223,0.8463325,144.61,144.58,26.9164]
[1723793555625,0.8463325,144.61,144.59,20.0]
[1723793556436,0.8463325,144.61,144.59,26.916]
[1723793557732,0.8463325,144.61,144.59,6.916]
[1723793558812,0.8463325,144.61,144.58,20.0]
[1723793559014,10.3,144.59,144.56,22.07718376]
[1723793559242,10.3,144.59,144.56,20.0]
[1723793559617,10.3,144.59,144.56,26.9174]
[1723793559830,7.7615325,144.61,144.58,20.0]
[1723793560036,18.0615325,144.61,144.58,20.0]
[1723793563146,18.0615325,144.61,144.57,6.917]
[1723793563653,18.0615325,144.61,144.58,20.0]
[1723793564237,11.1463325,144.61,144.58,20.0]
[1723793564535,11.1463325,144.61,144.58,26.9164]
[1723793564716,0.8463325,144.61,144.6,20.0]
[1723793568945,0.8463325,144.61,144.59,6.9161]
[1723793569154,0.8463325,144.61,144.6,6.9156]
[1723793569347,0.8463325,144.61,144.6,26.9156]
[1723793569516,0.8463325,144.61,144.6,72.04109]
[1723793570850,0.8463325,144.61,144.6,94.24343596]
[1723793571146,0.8463325,144.61,144.6,92.16658]
[1723793572037,0.8463325,144.61,144.6,92.04109]
[1723793573844,0.8463325,144.61,144.6,94.24341441]
[1723793574040,0.8463325,144.61,144.6,100.70751048]
[1723793575054,0.8463325,144.61,144.6,100.70749917]
[1723793575470,0.8463325,144.61,144.6,94.2434031]
[1723793575653,0.8463325,144.61,144.6,55.45651917]
[1723793575847,0.8463325,144.61,144.6,35.45651917]
[1723793576154,0.8463325,144.61,144.6,28.9924373]
[1723793576349,0.8463325,144.61,144.6,35.45657649]
[1723793577148,0.8463325,144.61,144.6,80.58206649]
[1723793577715,0.8463325,144.61,144.6,80.58200917]
[1723793578951,0.8463325,144.61,144.6,80.45651917]
[1723793579255,0.8463325,144.61,144.6,78.37969607]
[1723793579459,0.8463325,144.61,144.6,80.45651917]
[1723793581169,0.8463325,144.61,144.6,71.9156]
[1723793581349,0.8463325,144.61,144.6,80.45652018]
[1723793581937,0.8463325,144.61,144.6,80.45651917]
[1723793582261,0.8463325,144.61,144.6,71.9156]
[1723793582436,0.8463325,144.61,144.6,80.45651917]
[1723793583446,0.8463325,144.61,144.6,100.70749917]
[1723793585222,0.8463325,144.61,144.6,98.63067607]
[1723793585389,0.8463325,144.61,144.6,100.70738371]
[1723793585693,0.8463325,144.61,144.6,120.70738371]
[1723793586207,0.8463325,144.61,144.6,133.79570195]
[1723793586394,3.25e-05,144.61,144.6,150.23600195]
[1723793586582,3.25e-05,144.61,144.6,150.23286813]
[1723793587191,3.25e-05,144.61,144.6,139.70850027]
[1723793587399,1.00160575,144.66,144.65,26.9132]
[1723793587590,1.00160575,144.66,144.65,92.16418]
[1723793589096,1.00160575,144.66,144.65,92.28967]
[1723793589284,1.00160575,144.66,144.65,102.71516]
[1723793589765,1.00160575,144.66,144.65,92.41516]
[1723793589968,1.00160575,144.66,144.65,92.28967]
[1723793590175,1.00160575,144.66,144.65,92.41516]
[1723793592602,1.00160575,144.66,144.65,92.28967]
[1723793593605,1.00160575,144.66,144.65,72.16418]
[1723793593897,1.00160575,144.66,144.65,26.9132]
[1723793596079,1.00160575,144.66,144.65,71.9132]
[1723793599065,1.00160575,144.66,144.63,6.9138]
[1723793599483,1.00160575,144.66,144.64,20.0]
[1723793600329,1.00160575,144.66,144.64,26.9136]
[1723793600494,1.00160575,144.66,144.65,6.9132]
[1723793600698,1.00160575,144.66,144.65,51.9132]
[1723793601825,1.00160575,144.66,144.65,45.0]
[1723793603121,1.00160575,144.66,144.64,26.9136]
[1723793603898,10.3,144.65,144.64,20.0]
[1723793604902,1.00160575,144.66,144.64,20.0]
[1723793606541,10.3,144.65,144.61,20.0]
[1723793607628,10.3,144.65,144.63,20.0]
[1723793608231,10.3,144.65,144.61,20.0]
[1723793609938,10.3,144.65,144.63,20.0]
[1723793610643,10.3,144.65,144.61,26.9151]
[1723793610994,10.3,144.65,144.63,20.0]
[1723793611442,17.2132,144.65,144.61,20.0]
[1723793611639,17.2132,144.65,144.59,20.0]
[1723793611640,6.9141,144.64,144.59,20.0]
[1723793611939,6.9141,144.64,144.57,30.90815223]
[1723793611940,10.3,144.61,144.57,14.14483798]
[1723793612142,10.3,144.61,144.58,8.5421865]
[1723793612436,10.3,144.61,144.57,34.14483798]
[1723793612619,10.3,144.61,144.58,8.5422407]
[1723793612809,10.3,144.61,144.57,34.14483798]
[1723793613008,10.3,144.61,144.58,8.5422631]
[1723793613226,10.3,144.61,144.57,34.14483798]
[1723793613439,10.3,144.61,144.58,8.54226219]
[1723793613639,10.3,144.61,144.57,34.14483798]
[1723793613942,17.33969,144.63,144.6,20.0]
[1723793614243,10.3,144.61,144.57,14.14483798]
[1723793614412,17.2153,144.61,144.58,53.54226402]
[1723793614610,6.9156,144.6,144.57,7.22793798]
[1723793614864,10.3,144.61,144.58,20.0]
[1723793615634,0.12549,144.63,144.6,20.0]
[1723793615832,13.3516,144.64,144.6,20.0]
[1723793615833,16.7375,144.64,144.6,20.0]
[1723793616057,23.6512,144.64,144.61,45.0]
[1723793618477,10.3,144.62,144.61,45.0]
[1723793618636,10.3,144.62,144.58,6.9164]
[1723793618840,6.9151,144.61,144.59,45.0]
[1723793619045,10.3,144.62,144.58,45.0]
[1723793620040,17.2148,144.62,144.58,45.0]
[1723793621768,10.3,144.62,144.58,51.9164]
[1723793621954,6.9143,144.63,144.59,20.0]
[1723793622157,6.9143,144.63,144.6,45.0]
[1723793622158,10.3,144.63,144.6,45.0]
[1723793622359,10.3,144.63,144.61,20.0]
[1723793624074,10.3,144.63,144.6,45.0]
[1723793624075,17.2142,144.63,144.6,45.0]
[1723793624570,17.2137,144.64,144.61,20.0]
[1723793624956,6.9142,144.63,144.6,45.0]
[1723793625466,10.3,144.62,144.6,45.0]
[1723793625671,10.3,144.62,144.59,45.0]
[1723793626265,17.2146,144.62,144.59,45.0]
[1723793626461,17.2146,144.62,144.58,45.0]
[1723793626675,10.3,144.6,144.58,45.0]
[1723793628955,17.2146,144.62,144.58,45.0]
[1723793630065,6.9151,144.61,144.58,45.0]
[1723793630459,17.2148,144.62,144.58,45.0]
[1723793630963,6.9152,144.61,144.57,20.0]
[1723793631163,0.12549,144.6,144.57,20.0]
[1723793631500,6.9152,144.61,144.57,20.0]
[1723793632057,6.9152,144.61,144.58,45.0]
[1723793632258,10.3,144.6,144.58,45.0]
[1723793632458,17.2156,144.6,144.58,45.0]
[1723793632676,1.72918979,144.59,144.55,26.9179]
[1723793632993,17.2156,144.6,144.56,45.0]
[1723793633193,10.3,144.6,144.56,51.9174]
[1723793633504,10.3,144.6,144.57,20.0]
[1723793633993,6.9151,144.61,144.57,26.917]
[1723793634190,6.9151,144.61,144.57,20.0]
[1723793635861,10.3,144.6,144.57,20.0]
[1723793637407,12.02919007,144.6,144.56,45.0]
[1723793637704,12.02919007,144.6,144.54,6.9181]
[1723793637705,7.04199,144.59,144.54,6.9181]
[1723793638003,10.3,144.58,144.54,6.9181]
[1723793638400,10.3,144.56,144.5,50.04970265]
[1723793638724,10.3,144.56,144.51,10.62329479]
[1723793638725,1.72970977,144.55,144.51,10.62329479]
[1723793638902,1.72970977,144.55,144.51,8.54524447]
[1723793639081,1.72970977,144.55,144.51,15.46494447]
[1723793639608,10.3,144.56,144.52,26.919]
[1723793639794,10.3,144.56,144.54,20.0]
[1723793640114,17.2169,144.58,144.54,20.0]
[1723793640278,6.9156,144.6,144.56,20.0]
[1723793640482,17.2156,144.6,144.56,20.0]
[1723793643091,6.9138,144.64,144.58,20.0]
[1723793643309,6.9138,144.64,144.6,20.0]
[1723793643603,33.4418,144.65,144.6,20.0]
[1723793643982,6.9137,144.64,144.6,20.0]
[1723793644798,17.2145,144.63,144.57,71.9169]
[1723793645133,17.2145,144.63,144.56,26.9174]
[1723793645134,10.3,144.61,144.56,26.9174]
[1723793645495,0.12549,144.6,144.56,26.9174]
[1723793645803,0.12549,144.6,144.58,20.0]
[1723793645999,0.12549,144.6,144.56,26.9174]
[1723793646311,0.12549,144.6,144.58,20.0]
[1723793647201,0.12549,144.6,144.57,45.0]
[1723793648209,0.25098,144.61,144.57,45.0]
[1723793649098,7.16608,144.61,144.57,45.0]
[1723793650119,6.9161,144.59,144.53,4.16067895]
[1723793650429,0.12549,144.59,144.55,6.9179]
[1723793650604,0.25098,144.59,144.55,6.9179]
[1723793651441,0.25098,144.59,144.54,65.0]
[1723793651442,8.89650047,144.59,144.54,71.9183]
[1723793651625,0.12549,144.59,144.56,20.0]
[1723793651807,22.7404,144.6,144.56,20.0]
[1723793654663,22.7404,144.6,144.54,45.0]
[1723793654664,32.91718,144.59,144.54,45.0]
[1723793654864,32.91718,144.59,144.55,2.07773579]
[1723793655047,32.91718,144.59,144.54,45.0]
[1723793655240,32.91718,144.59,144.54,51.9184]
[1723793656448,0.12549,144.59,144.57,20.0]
[1723793656661,15.8247,144.6,144.57,20.0]
[1723793657448,22.7404,144.6,144.55,26.918]
[1723793657657,0.12549,144.59,144.55,26.918]
[1723793658034,22.7404,144.6,144.56,45.0]
[1723793659358,22.7404,144.6,144.57,20.0]
[1723793660581,22.7404,144.6,144.56,45.0]
[1723793660885,0.12549,144.59,144.56,45.0]
[1723793663897,7.16738,144.59,144.52,30.38870521]
[1723793664196,7.16738,144.59,144.53,30.85801876]
[1723793664197,32.91738,144.59,144.53,30.85801876]
[1723793664382,32.91738,144.59,144.54,8.54477745]
[1723793664582,32.91738,144.59,144.54,20.0]
[1723793664771,32.91738,144.59,144.53,20.0]
[1723793664966,32.91738,144.59,144.54,13.38545488]
[1723793665169,32.91738,144.59,144.55,22.07786489]
[1723793665170,7.16738,144.59,144.55,22.07786489]
[1723793665396,7.16738,144.59,144.55,20.0]
[1723793667893,17.46738,144.59,144.55,20.0]
[1723793668582,17.46738,144.59,144.54,6.9184]
[1723793668783,17.46738,144.59,144.55,2.07785004]
[1723793668981,17.46738,144.59,144.54,6.9184]
[1723793669910,10.3,144.57,144.51,25.74277388]
[1723793670220,17.2171,144.57,144.52,93.30960457]
[1723793670422,17.2171,144.57,144.53,8.5454235]
[1723793670718,7.04309,144.56,144.54,2.07797368]
[1723793670887,10.42549,144.55,144.49,27.85590862]
[1723793671087,10.42549,144.55,144.5,21.39391521]
[1723793671418,10.42549,144.55,144.49,10.38977388]
[1723793671419,10.42549,144.55,144.51,8.54671469]
[1723793671587,1.72994453,144.54,144.52,2.07831231]
[1723793671785,1.72994453,144.54,144.48,30.38977388]
[1723793671786,1.72994453,144.54,144.5,12.84701969]
[1723793671995,1.72994453,144.54,144.51,8.54668867]
[1723793672210,1.72994453,144.54,144.5,6.92]
[1723793672421,1.72994453,144.54,144.51,2.07830306]
[1723793672730,1.72994453,144.54,144.5,6.92]
[1723793672884,17.34349,144.55,144.51,2.07831377]
[1723793673087,7.04399,144.54,144.5,6.92]
[1723793673418,10.42549,144.53,144.51,2.07831315]
[1723793673716,8.77505282,144.52,144.47,6.9215]
[1723793673921,12.03028879,144.51,144.48,2.07856733]
[1723793674129,7.04489,144.52,144.45,20.92290426]
[1723793674130,7.04489,144.52,144.45,25.08527439]
[1723793674131,10.3,144.49,144.45,25.08527439]
[1723793674324,10.3,144.49,144.44,35.1059]
[1723793674325,10.3,144.49,144.46,2.07883067]
[1723793674620,0.12549,144.48,144.44,9.23818586]
[1723793674806,0.12549,144.48,144.45,2.07893766]
[1723793675116,0.12549,144.48,144.46,2.07893766]
[1723793675329,0.12549,144.48,144.44,13.3934093]
[1723793675631,0.12549,144.48,144.45,22.07894819]
[1723793675800,10.3,144.49,144.46,2.07894819]
[1723793675987,7.17148,144.5,144.45,26.9227]
[1723793676324,7.17148,144.5,144.46,45.0]
[1723793678923,0.12549,144.5,144.47,20.0]
[1723793679227,7.04529,144.52,144.47,20.0]
[1723793679520,0.12549,144.51,144.47,20.0]
[1723793680518,7.04539,144.51,144.47,20.0]
[1723793683218,7.04539,144.51,144.46,51.9222]
[1723793683419,8.65093967,144.5,144.46,45.0]
[1723793683723,0.12549,144.49,144.45,6.9226]
[1723793683924,0.25098,144.49,144.45,6.9226]
[1723793684138,0.25098,144.49,144.45,26.9226]
[1723793684345,0.12549,144.49,144.45,26.9226]
[1723793685212,6.92,144.51,144.47,20.0]
[1723793685412,0.12549,144.5,144.47,20.0]
[1723793686727,7.04589,144.5,144.45,6.9227]
[1723793687429,7.04589,144.5,144.45,26.9227]
[1723793687626,0.12549,144.5,144.46,51.9222]
[1723793689041,8.77638952,144.5,144.46,45.0]
[1723793689335,8.77638952,144.5,144.45,6.9226]
[1723793690156,6.9218,144.48,144.41,27.23641432]
[1723793690443,6.9218,144.48,144.4,23.6700462]
[1723793690444,1.73072798,144.47,144.43,20.0]
[1723793690632,1.73072798,144.47,144.44,6.9228]
[1723793691246,1.73072752,144.48,144.44,6.9228]
[1723793691547,1.73072752,144.48,144.43,20.0]